bitfinex-derivatives/quotes_SOLF0:USTF0_20251023
["timestamp","ask_amount","ask_price","bid_price","bid_amount"]
[1761230813802,3.94638891,190.12,190.06,4.7337]
[1761230814095,11.21110689,190.13,190.06,4.7337]
[1761230814295,8.60110689,190.12,190.06,4.7337]
[1761230814498,3.94638891,190.12,190.06,4.7337]
[1761230814694,11.21136827,190.13,190.07,4.7335]
[1761230814885,2.61,190.13,190.07,4.7335]
[1761230815090,6.50953062,190.13,190.07,4.7335]
[1761230815296,4.65446737,190.15,190.05,2.77]
[1761230815589,2.61,190.14,190.05,2.77]
[1761230815790,8.55406639,190.15,190.05,2.77]
[1761230816692,11.16406639,190.15,190.05,2.77]
[1761230816901,3.89959902,190.14,190.05,2.77]
[1761230817200,3.89959902,190.14,190.09,7.5029]
[1761230817498,8.55406639,190.15,190.09,7.5029]
[1761230820293,2.88,190.14,190.09,4.7329]
[1761230820500,2.88,190.13,190.09,4.7329]
[1761230820690,2.88,190.13,190.09,7.5829]
[1761230820892,6.77959902,190.14,190.09,7.5829]
[1761230821999,6.77959902,190.14,190.1,7.5827]
[1761230822000,3.89959902,190.14,190.1,7.5827]
[1761230822298,11.43406639,190.15,190.1,7.5827]
[1761230822501,7.53446737,190.15,190.1,7.5827]
[1761230822696,4.89483006,190.23,190.13,2.85]
[1761230822899,2.88,190.22,190.13,2.85]
[1761230823094,8.53076559,190.23,190.13,7.5821]
[1761230823302,2.88,190.21,190.13,4.7321]
[1761230823495,8.53076559,190.22,190.14,2.85]
[1761230823700,57.24363006,190.27,190.15,2.85]
[1761230823896,57.24363006,190.27,190.18,6.90121604]
[1761230823897,8.52790439,190.26,190.18,6.90121604]
[1761230824204,4.89483006,190.34,190.27,2.85]
[1761230824595,2.88,190.33,190.23,2.85]
[1761230824790,2.88,190.32,190.18,2.85]
[1761230825102,11.40012432,190.32,190.23,2.85]
[1761230825299,4.65181469,190.31,190.23,2.85]
[1761230825491,3.83866386,190.31,190.26,4.7288]
[1761230825697,8.48044733,190.35,190.27,2.85]
[1761230825895,4.64178347,190.34,190.28,4.7282]
[1761230826099,4.64178347,190.34,190.27,2.85]
[1761230826100,2.88,190.39,190.3,4.05121604]
[1761230826300,2.88,190.39,190.32,2.85]
[1761230826502,2.88,190.44,190.33,7.55225517]
[1761230826704,2.88,190.42,190.34,4.70225517]
[1761230826901,2.88,190.42,190.29,2.85]
[1761230827103,2.88,190.42,190.26,6.66193263]
[1761230827104,7.6062,190.38,190.3,4.69430425]
[1761230827301,7.6062,190.38,190.31,4.69430425]
[1761230827504,2.88,190.37,190.32,4.69430425]
[1761230827700,2.88,190.37,190.28,7.5784]
[1761230827898,2.88,190.37,190.29,4.68780114]
[1761230828099,2.88,190.37,190.3,4.68780114]
[1761230828299,2.88,190.37,190.31,4.68780114]
[1761230828500,4.7265,190.36,190.28,7.5784]
[1761230828701,2.88,190.37,190.29,4.6841008]
[1761230828916,2.88,190.37,190.3,4.6841008]
[1761230829208,2.88,190.37,190.31,4.6841008]
[1761230829410,2.88,190.37,190.29,7.5779]
[1761230829608,2.88,190.42,190.31,2.85]
[1761230829811,8.50302634,190.46,190.33,2.85]
[1761230830006,7.6042,190.45,190.35,2.85]
[1761230830319,2.88,190.43,190.35,2.85]
[1761230830612,2.88,190.42,190.27,2.85]
[1761230830913,2.88,190.42,190.32,4.7274]
[1761230830914,2.88,190.41,190.32,4.7274]
[1761230831109,2.88,190.41,190.33,4.67361824]
[1761230831314,2.88,190.41,190.32,4.7274]
[1761230831611,2.88,190.41,190.33,4.668033]
[1761230831812,2.88,190.41,190.32,4.7274]
[1761230832002,2.88,190.41,190.33,4.66799886]
[1761230832200,2.88,190.41,190.32,4.7274]
[1761230833012,2.88,190.39,190.3,2.85]
[1761230833206,2.88,190.39,190.31,4.6648281]
[1761230833406,2.88,190.39,190.3,2.85]
[1761230833712,2.88,190.39,190.31,12.23847635]
[1761230833916,2.88,190.39,190.31,7.5777]
[1761230834209,2.88,190.39,190.31,2.85]
[1761230834410,2.88,190.37,190.27,2.85]
[1761230834614,2.88,190.37,190.28,4.6612215]
[1761230834814,2.88,190.37,190.27,2.85]
[1761230835005,2.88,190.37,190.28,4.66154113]
[1761230835205,2.88,190.36,190.27,2.85]
[1761230835817,2.88,190.34,190.27,2.85]
[1761230836318,4.7262,190.38,190.28,2.85]
[1761230836610,7.6062,190.38,190.28,2.85]
[1761230837410,7.6062,190.38,190.29,4.66381611]
[1761230837612,7.6062,190.38,190.28,2.85]
[1761230837813,7.6062,190.38,190.29,4.66345454]
[1761230838017,7.6062,190.38,190.28,7.5782]
[1761230838207,7.6062,190.38,190.29,4.66274346]
[1761230838407,7.6062,190.38,190.28,7.5782]
[1761230838719,2.88,190.37,190.28,7.5782]
[1761230840908,2.88,190.37,190.29,4.728]
[1761230842018,2.88,190.37,190.31,4.7277]
[1761230842517,4.7255,190.4,190.32,4.7272]
[1761230843018,2.88,190.38,190.29,4.728]
[1761230843714,2.88,190.38,190.3,2.85]
[1761230843912,2.88,190.38,190.29,4.728]
[1761230844114,2.88,190.36,190.29,4.728]
[1761230845212,2.88,190.36,190.3,2.85]
[1761230846320,2.77,190.32,190.22,2.72]
[1761230846621,2.77,190.32,190.24,2.72]
[1761230846817,2.77,190.32,190.24,7.4493]
[1761230847018,2.77,190.32,190.24,2.72]
[1761230847215,2.77,190.32,190.25,4.66178358]
[1761230847414,2.77,190.32,190.25,7.4489]
[1761230847616,2.77,190.38,190.27,2.72]
[1761230847923,2.77,190.38,190.28,7.38233776]
[1761230848224,2.77,190.38,190.29,2.72]
[1761230848920,2.77,190.38,190.26,4.7289]
[1761230850222,2.77,190.38,190.27,4.668129]
[1761230850422,2.77,190.38,190.26,4.7289]
[1761230851117,8.43645434,190.39,190.27,4.7285]
[1761230851420,2.85,190.37,190.27,4.7285]
[1761230851620,44.72,190.42,190.27,4.7285]
[1761230851621,2.85,190.39,190.27,4.7285]
[1761230851815,2.85,190.36,190.27,4.7285]
[1761230852720,2.85,190.35,190.27,4.7285]
[1761230853520,2.85,190.34,190.27,4.7285]
[1761230853826,2.85,190.34,190.27,7.5385]
[1761230854018,2.85,190.34,190.28,4.67751113]
[1761230854218,2.85,190.34,190.27,7.5385]
[1761230854523,2.85,190.34,190.28,4.68094861]
[1761230854722,2.85,190.34,190.27,7.5385]
[1761230854918,2.85,190.34,190.28,4.68140263]
[1761230855117,2.85,190.34,190.27,7.5385]
[1761230855320,2.85,190.34,190.28,4.68165369]
[1761230855618,2.85,190.34,190.27,7.5385]
[1761230855922,2.85,190.32,190.28,4.68562378]
[1761230856223,2.85,190.32,190.25,7.5391]
[1761230856425,2.85,190.32,190.26,7.4999073]
[1761230856626,7.5776,190.32,190.28,2.81]
[1761230856823,2.85,190.32,190.29,4.69021454]
[1761230857022,15.77,190.41,190.3,7.50021454]
[1761230857023,12.25367997,190.35,190.3,7.50021454]
[1761230857222,4.67687997,190.34,190.3,2.81]
[1761230857426,4.67687997,190.34,190.21,100.47176325]
[1761230857427,2.85,190.38,190.31,7.50116702]
[1761230857613,2.85,190.38,190.32,4.69116702]
[1761230857814,12.22303899,190.39,190.33,4.69116702]
[1761230858018,4.64723899,190.38,190.31,7.5375]
[1761230858315,4.7261,190.38,190.32,4.68983764]
[1761230858514,2.85,190.37,190.33,4.68983764]
[1761230858722,2.85,190.37,190.34,4.68983764]
[1761230858920,12.22609574,190.37,190.31,7.5375]
[1761230859123,2.85,190.35,190.32,4.69764433]
[1761230859323,6.64968067,190.35,190.26,2.81]
[1761230859625,2.85,190.35,190.27,4.70312738]
[1761230859827,2.85,190.35,190.28,4.70312738]
[1761230860029,2.85,190.33,190.29,4.70312738]
[1761230860226,2.85,190.33,190.3,4.70312738]
[1761230860227,7.49979574,190.33,190.3,4.70312738]
[1761230860418,7.49979574,190.33,190.27,4.7285]
[1761230860419,2.85,190.33,190.31,4.70312738]
[1761230860620,4.65830184,190.33,190.32,4.70312738]
[1761230860825,8.46090273,190.35,190.32,4.70312738]
[1761230861026,8.46090273,190.35,190.29,2.81]
[1761230861222,8.46090273,190.35,190.31,2.81]
[1761230861527,7.576,190.38,190.33,2.81]
[1761230861721,7.51059599,190.37,190.34,4.70709072]
[1761230861934,7.51059599,190.37,190.35,4.70709072]
[1761230862119,7.51059599,190.37,190.36,4.70709072]
[1761230862627,2.85,190.36,190.29,2.81]
[1761230862826,11.30146477,190.36,190.3,4.71241622]
[1761230863026,2.85,190.35,190.31,4.71241622]
[1761230863230,7.51059599,190.35,190.32,4.71241622]
[1761230863431,7.51059599,190.35,190.33,4.71241622]
[1761230863631,2.85,190.35,190.34,4.71241622]
[1761230864029,11.31508563,190.35,190.34,4.71241622]
[1761230864525,6.64500372,190.35,190.34,4.71241622]
[1761230864731,8.46508563,190.35,190.34,4.71241622]
[1761230865124,4.67008191,190.35,190.34,4.71241622]
[1761230865325,8.46508563,190.35,190.34,4.71241622]
[1761230865926,4.67008191,190.35,190.34,4.71241622]
[1761230866527,7.52008191,190.35,190.34,4.71241622]
[1761230866729,11.31508563,190.35,190.34,4.71241622]
[1761230867123,11.32705094,190.35,190.34,4.71241622]
[1761230867529,17.281881,190.35,190.34,4.71241622]
[1761230868034,22.008681,190.35,190.34,4.73550105]
[1761230868336,17.11385094,190.35,190.34,4.73550105]
[1761230868732,22.02138096,190.35,190.34,4.73550105]
[1761230869132,17.11385094,190.35,190.34,4.73550105]
[1761230869543,22.02330823,190.35,190.34,4.73550105]
[1761230869949,17.11385094,190.35,190.34,4.73550105]
[1761230870546,22.02426713,190.35,190.34,4.73550105]
[1761230872150,18.22926341,190.35,190.34,4.73550105]
[1761230873256,13.31884722,190.35,190.34,4.73550105]
[1761230875061,12.25884722,190.35,190.34,4.73550105]
[1761230875546,17.17118288,190.35,190.34,4.73550105]
[1761230875746,16.07970267,190.35,190.34,4.73550105]
[1761230875946,2.85,190.32,190.24,7.5394]
[1761230876142,49.18204722,190.31,190.25,7.55853802]
[1761230876349,4.68204722,190.3,190.27,2.81]
[1761230876553,4.68204722,190.3,190.23,2.76085545]
[1761230876554,4.68204722,190.29,190.28,4.74853802]
[1761230876860,4.68204722,190.3,190.28,7.55853802]
[1761230877156,4.68204722,190.3,190.29,4.74853802]
[1761230878156,4.68204722,190.31,190.29,4.74853802]
[1761230878351,4.68204722,190.31,190.3,4.74853802]
[1761230879546,4.68204722,190.31,190.3,7.38853802]
[1761230879951,4.70400596,190.31,190.3,4.74853802]
[1761230880152,4.70400596,190.31,190.3,7.38853802]
[1761230881756,49.20400596,190.34,190.31,2.64]
[1761230882061,4.70400596,190.33,190.32,7.38853802]
[1761230882262,7.4263,190.37,190.32,7.38853802]
[1761230882263,49.20400596,190.36,190.32,7.38853802]
[1761230882454,4.70400596,190.35,190.33,4.74853802]
[1761230882653,4.70400596,190.34,190.32,2.64]
[1761230882946,4.70400596,190.35,190.33,4.78219116]
[1761230883151,2.7,190.35,190.34,4.78219116]
[1761230883354,7.40290261,190.35,190.34,4.78219116]
[1761230884158,51.90290261,190.35,190.34,4.78219116]
[1761230885161,49.20290261,190.35,190.34,4.78219116]
[1761230885760,4.70290261,190.35,190.34,7.42219116]
[1761230885956,4.70290261,190.38,190.35,2.64]
[1761230886153,7.40290261,190.37,190.36,4.78219116]
[1761230886351,51.90290261,190.37,190.36,4.78219116]
[1761230886757,53.66975034,190.37,190.36,4.78219116]
[1761230887057,58.58248422,190.37,190.36,4.78219116]
[1761230887860,53.66975034,190.37,190.36,4.78219116]
[1761230888367,59.64248422,190.37,190.36,4.78219116]
[1761230888560,2.7,190.36,190.3,2.64]
[1761230888762,1.76684773,190.33,190.3,2.64]
[1761230889058,49.20290261,190.32,190.3,2.64]
[1761230889260,4.70290261,190.31,190.3,2.64]
[1761230889459,26.68290261,190.36,190.3,2.64]
[1761230889660,4.70290261,190.35,190.32,4.7273]
[1761230889861,4.70290261,190.35,190.3,2.64]
[1761230889862,4.70290261,190.36,190.3,2.64]
[1761230890168,4.70290261,190.35,190.3,2.64]
[1761230890360,4.70290261,190.36,190.32,2.64]
[1761230891258,4.70290261,190.36,190.32,7.3673]
[1761230891458,4.70290261,190.36,190.33,2.64]
[1761230892059,21.98,190.37,190.33,2.64]
[1761230892969,4.56948086,190.36,190.33,2.64]
[1761230893163,21.98,190.37,190.33,2.64]
[1761230893862,24.68,190.37,190.33,2.64]
[1761230894070,4.56890615,190.36,190.33,2.64]
[1761230895166,4.46684773,190.35,190.3,2.64]
[1761230895467,1.76684773,190.31,190.26,2.64]
[1761230895767,1.76684773,190.31,190.24,6.5325608]
[1761230895768,1.76684773,190.29,190.23,6.5325608]
[1761230895962,1.76684773,190.28,190.22,2.64]
[1761230896361,1.76684773,190.28,190.23,2.64]
[1761230898360,1.76684773,190.26,190.23,2.64]
[1761230898757,1.76684773,190.26,190.19,2.64]
[1761230900067,1.76684773,190.26,190.2,2.64]
[1761230900259,6.33575388,190.27,190.2,2.64]
[1761230900466,4.5683251,190.27,190.21,2.64]
[1761230900673,4.5683251,190.28,190.21,2.64]
[1761230901367,1.76684773,190.27,190.21,2.64]
[1761230901569,4.46684773,190.27,190.22,4.76519504]
[1761230901869,2.7,190.26,190.23,4.76519504]
[1761230902066,2.7,190.26,190.24,4.76519504]
[1761230902268,2.7,190.26,190.25,4.76519504]
[1761230904477,4.46684773,190.27,190.25,4.76519504]
[1761230904773,4.46684773,190.27,190.26,4.76519504]
[1761230906178,53.53517283,190.27,190.26,4.76519504]
[1761230906768,53.53517283,190.27,190.19,4.7305]
[1761230906970,1.76684773,190.24,190.21,2.61]
[1761230907173,1.76684773,190.24,190.22,4.75718955]
[1761230907372,1.76684773,190.24,190.23,4.75718955]
[1761230907669,47.34,190.31,190.24,2.61]
[1761230907978,2.84,190.28,190.25,4.75718955]
[1761230908275,2.84,190.28,190.26,4.75718955]
[1761230908579,2.84,190.28,190.27,4.75718955]
[1761230909870,4.60684773,190.28,190.27,4.75718955]
[1761230911373,1.76684773,190.28,190.27,4.75718955]
[1761230911575,6.32724934,190.3,190.27,4.75718955]
[1761230911764,6.32724934,190.3,190.28,4.75718955]
[1761230911967,1.76684773,190.35,190.29,7.53718955]
[1761230912270,1.76684773,190.35,190.2,6.5325608]
[1761230912271,2.79,190.41,190.32,2.78]
[1761230912466,9.11217813,190.41,190.34,2.78]
[1761230912668,9.11217813,190.41,190.35,7.53718955]
[1761230912879,9.11217813,190.41,190.36,7.53718955]
[1761230913077,49.0553304,190.4,190.37,4.75718955]
[1761230913268,49.0553304,190.4,190.36,2.78]
[1761230913269,44.5,190.4,190.38,4.75718955]
[1761230913468,49.05684773,190.4,190.39,4.75718955]
[1761230913673,49.05357527,190.4,190.39,4.75718955]
[1761230914470,44.5,190.4,190.39,4.75718955]
[1761230916778,46.26684773,190.4,190.39,4.75718955]
[1761230917081,44.5,190.4,190.39,7.53718955]
[1761230917672,44.5,190.4,190.39,4.75718955]
[1761230920280,46.26684773,190.4,190.39,4.75718955]
[1761230920672,44.5,190.4,190.39,7.53718955]
[1761230921580,1.76684773,190.41,190.4,2.78]
[1761230921784,1.76684773,190.43,190.4,7.53718955]
[1761230922086,1.76684773,190.43,190.41,4.75718955]
[1761230922286,1.76684773,190.43,190.4,2.78]
[1761230922287,1.76684773,190.43,190.42,4.75718955]
[1761230922786,1.76684773,190.43,190.42,4.7568817]
[1761230923977,2.79,190.42,190.34,2.78]
[1761230924287,1.76684773,190.37,190.36,2.78]
[1761230924482,1.76684773,190.37,190.36,4.75727102]
[1761230925780,44.48,190.39,190.37,2.78]
[1761230925984,1.76684773,190.39,190.38,4.75727102]
[1761230927593,4.55684773,190.39,190.38,4.75727102]
[1761230928082,4.55684773,190.39,190.34,7.5068]
[1761230928388,1.76684773,190.36,190.35,7.54257748]
[1761230929088,44.48,190.4,190.35,7.54257748]
[1761230929274,1.76684773,190.37,190.36,4.76257748]
[1761230929479,1.76684773,190.37,190.36,7.54257748]
[1761230930182,1.76684773,190.37,190.36,4.76257748]
[1761230933489,1.76684773,190.37,190.36,7.54257748]
[1761230934694,1.76684773,190.37,190.36,4.76257748]
[1761230937794,1.76684773,190.37,190.36,7.54257748]
[1761230937993,1.76684773,190.37,190.36,4.76257748]
[1761230940393,44.46,190.39,190.37,2.75]
[1761230940599,44.46,190.39,190.38,7.51257748]
[1761230940899,46.22684773,190.39,190.38,4.76257748]
[1761230941095,2.69,190.38,190.3,2.75]
[1761230941299,2.69,190.38,190.27,4.8978323]
[1761230941300,2.69,190.31,190.27,2.75]
[1761230941497,1.76684773,190.28,190.23,2.75]
[1761230941707,1.76684773,190.26,190.23,2.75]
[1761230941898,1.76684773,190.24,190.17,2.75]
[1761230942402,1.76684773,190.22,190.2,2.75]
[1761230943598,1.76684773,190.22,190.17,2.75]
[1761230943798,1.76684773,190.19,190.17,2.75]
[1761230944103,1.76684773,190.19,190.18,2.75]
[1761230945705,1.76684773,190.24,190.19,2.75]
[1761230945906,1.76684773,190.22,190.19,2.75]
[1761230946600,1.76684773,190.24,190.19,2.75]
[1761230947001,1.76684773,190.28,190.21,2.75]
[1761230947402,2.69,190.33,190.24,1.76684773]
[1761230947599,4.45684773,190.33,190.25,2.75]
[1761230947798,4.45684773,190.33,190.25,7.4794]
[1761230947996,1.76684773,190.31,190.25,2.75]
[1761230948205,44.46,190.34,190.26,2.75]
[1761230948408,4.45684773,190.36,190.28,2.75]
[1761230948806,111.97794507,190.39,190.31,2.75]
[1761230949107,114.66794507,190.39,190.31,2.75]
[1761230949300,114.66794507,190.39,190.3,4.7282]
[1761230949301,2.69,190.38,190.3,4.7282]
[1761230949801,5.45018945,190.38,190.3,4.7282]
[1761230949999,5.45018945,190.38,190.3,7.4782]
[1761230951101,5.45018945,190.38,190.31,2.75]
[1761230952612,64.75775562,190.39,190.31,2.75]
[1761230952909,64.75775562,190.39,190.29,2.76018945]
[1761230952910,64.75775562,190.39,190.33,7.4774]
[1761230953103,64.75775562,190.39,190.34,2.75]
[1761230954314,2.69,190.38,190.31,4.7281]
[1761230954911,2.69,190.38,190.31,7.4781]
[1761230955111,2.69,190.38,190.31,2.75]
[1761230957108,2.69,190.38,190.27,2.75]
[1761230957807,2.76018945,190.36,190.27,2.75]
[1761230958013,2.69,190.35,190.27,2.75]
[1761230959002,2.69,190.35,190.3,4.7282]
[1761230959206,2.69,190.35,190.3,7.4782]
[1761230960002,2.69,190.35,190.3,4.7282]
[1761230960909,2.69,190.35,190.3,7.4782]
[1761230963116,2.69,190.35,190.31,4.7279]
[1761230966523,2.8,190.33,190.25,4.7294]
[1761230966723,5.56018945,190.31,190.25,4.7294]
[1761230967023,2.76018945,190.28,190.22,2.72]
[1761230967417,5.56018945,190.28,190.23,4.7299]
[1761230967622,2.8,190.27,190.18,4.8978323]
[1761230967820,2.76018945,190.25,190.2,2.72]
[1761230968127,2.8,190.24,190.2,2.72]
[1761230968316,40.62,190.26,190.2,2.72]
[1761230969117,2.76018945,190.3,190.18,2.82]
[1761230969324,44.44,190.29,190.2,2.82]
[1761230970629,47.06,190.29,190.22,4.7301]
[1761230971232,47.06,190.29,190.2,7.5508]
[1761230971434,47.06,190.29,190.21,2.82]
[1761230971834,2.76018945,190.27,190.21,2.82]
[1761230972830,2.62,190.26,190.18,2.82]
[1761230973027,5.38018945,190.24,190.18,2.82]
[1761230974533,5.38018945,190.24,190.18,7.5511]
[1761230974736,2.76018945,190.24,190.19,2.82]
[1761230974931,7.48938945,190.27,190.19,2.82]
[1761230975131,2.76018945,190.27,190.19,2.82]
[1761230975335,2.62,190.28,190.2,2.82]
[1761230975536,5.38018945,190.28,190.2,2.82]
[1761230976645,5.38018945,190.28,190.2,7.5506]
[1761230977138,2.76018945,190.25,190.2,2.82]
[1761230977338,2.62,190.27,190.2,2.82]
[1761230978443,2.62,190.27,190.19,4.7309]
[1761230979642,2.62,190.27,190.19,7.5509]
[1761230980136,2.76018945,190.25,190.19,7.5509]
[1761230981237,2.62,190.27,190.19,7.5509]
[1761230981941,2.62,190.27,190.14,4.8978323]
[1761230981942,2.62,190.27,190.2,2.82]
[1761230983143,2.62,190.27,190.2,7.5506]
[1761230984141,2.62,190.27,190.2,2.82]
[1761230985033,5.38018945,190.26,190.2,2.82]
[1761230986147,2.76018945,190.26,190.2,2.82]
[1761230987748,2.62,190.27,190.21,2.82]
[1761230988749,2.62,190.27,190.21,7.5504]
[1761230988951,2.62,190.27,190.21,2.82]
[1761230990447,47.20018945,190.29,190.21,2.82]
[1761230990743,7.3484,190.3,190.21,2.82]
[1761230990744,2.62,190.3,190.21,2.82]
[1761230991347,2.62,190.3,190.2,2.82]
[1761230992151,44.42,190.31,190.2,2.82]
[1761230992350,44.42,190.31,190.25,2.82]
[1761230992844,44.42,190.31,190.26,2.82]
[1761230993052,47.04,190.31,190.26,2.82]
[1761230993254,2.62,190.3,190.23,2.82]
[1761230994949,2.62,190.3,190.23,4.7298]
[1761230995148,2.62,190.3,190.24,2.82]
[1761230995952,2.62,190.3,190.24,7.5496]
[1761230998055,2.62,190.3,190.26,2.82]
[1761230998443,44.42,190.31,190.26,2.82]
[1761230998647,47.04,190.31,190.26,2.82]
[1761230999156,2.75,190.3,190.26,2.82]
[1761231000450,2.75,190.3,190.26,7.5491]
[1761231000652,44.42,190.31,190.27,2.73]
[1761231000842,2.75,190.34,190.27,2.73]
[1761231000843,2.75,190.33,190.27,2.73]
[1761231001356,7.15964892,190.33,190.27,2.73]
[1761231002058,2.75,190.32,190.27,2.73]
[1761231002855,2.75,190.31,190.21,2.73]
[1761231003155,2.75,190.28,190.21,2.73]
[1761231003353,2.75,190.28,190.22,4.7301]
[1761231003655,2.75,190.28,190.21,2.73]
[1761231003853,2.75,190.27,190.18,2.73]
[1761231004458,5.51018945,190.26,190.18,2.73]
[1761231004641,5.51018945,190.26,190.18,7.4611]
[1761231005045,2.75,190.25,190.18,7.4611]
[1761231005243,2.76018945,190.19,190.14,4.87276111]
[1761231005442,2.75,190.18,190.13,2.73]
[1761231005648,2.75,190.18,190.09,105.40287095]
[1761231005845,2.75,190.18,190.09,102.67287095]
[1761231006044,2.75,190.18,190.1,2.73]
[1761231006250,5.51018945,190.22,190.12,2.73]
[1761231006559,5.51018945,190.22,190.14,2.73]
[1761231006854,2.75,190.21,190.14,2.73]
[1761231007449,2.75,190.18,190.14,2.73]
[1761231008050,44.4,190.24,190.14,2.73]
[1761231008051,5.51018945,190.22,190.14,2.73]
[1761231008247,2.76018945,190.25,190.14,2.73]
[1761231008453,47.16018945,190.25,190.16,2.73]
[1761231008763,46.1686199,190.25,190.17,2.73]
[1761231008954,46.1686199,190.25,190.18,4.731]
[1761231009260,46.1686199,190.25,190.19,2.73]
[1761231009860,1.7686199,190.21,190.15,2.73]
[1761231010156,1.7686199,190.19,190.15,2.73]
[1761231010356,4.5186199,190.17,190.11,7.60276111]
[1761231010660,4.5186199,190.14,190.09,102.67287095]
[1761231010855,4.5186199,190.14,190.09,97.80010984]
[1761231011055,4.5186199,190.14,190.1,2.73]
[1761231011656,1.7686199,190.12,190.09,97.80010984]
[1761231011956,1.7686199,190.1,190.06,2.73]
[1761231012155,1.7686199,190.12,190.07,2.73]
[1761231012347,1.7686199,190.13,190.07,2.73]
[1761231012548,2.75,190.16,190.07,2.73]
[1761231012549,1.7686199,190.16,190.07,2.73]
[1761231012748,47.15,190.19,190.1,2.73]
[1761231013161,13.52844302,190.3,190.1,2.73]
[1761231013162,2.75,190.22,190.1,2.73]
[1761231013863,2.75,190.2,190.11,4.7328]
[1761231014159,2.75,190.2,190.12,2.73]
[1761231014465,2.75,190.19,190.08,2.73]
[1761231014850,4.7313,190.18,190.08,7.4635]
[1761231015055,2.75,190.17,190.08,7.4635]
[1761231016349,2.75,190.16,190.08,2.73]
[1761231017267,2.75,190.13,190.04,4.7347]
[1761231017761,2.75,190.13,190.03,2.73]
[1761231017762,2.75,190.12,190.03,2.73]
[1761231018969,2.75,190.18,190.08,2.73]
[1761231019566,2.75,190.16,190.08,2.73]
[1761231020962,2.75,190.15,190.04,2.73]
[1761231021757,2.75,190.15,190.06,4.7339]
[1761231021958,2.75,190.15,190.07,2.73]
[1761231022666,2.75,190.15,190.07,7.4637]
[1761231024466,2.75,190.15,190.08,2.73]
[1761231025373,2.75,190.15,190.08,7.4635]
[1761231025571,2.75,190.15,190.09,2.73]
[1761231025775,47.17,190.2,190.09,2.73]
[1761231026071,7.3311,190.19,190.1,4.733]
[1761231026264,2.6,190.19,190.1,7.533]
[1761231027271,2.6,190.19,190.11,4.7327]
[1761231027566,44.42,190.2,190.11,2.8]
[1761231027762,44.42,190.2,190.14,2.8]
[1761231028164,47.02,190.2,190.14,2.8]
[1761231028558,44.42,190.2,190.06,2.8]
[1761231028758,2.6,190.19,190.06,2.8]
[1761231028958,2.83,190.18,190.06,2.8]
[1761231029458,2.83,190.18,190.07,2.6]
[1761231029459,2.83,190.17,190.07,2.6]
[1761231030063,4.7318,190.16,190.07,7.3339]
[1761231030270,2.83,190.15,190.07,7.3339]
[1761231030464,2.83,190.15,190.07,2.6]
[1761231031566,2.83,190.14,190.07,7.3338]
[1761231032067,2.83,190.2,190.04,4.05681566]
[1761231032366,2.83,190.2,190.05,2.6]
[1761231032572,7.5623,190.14,190.06,4.7341]
[1761231033273,7.5623,190.14,190.05,2.6]
[1761231034068,2.83,190.13,190.05,2.6]
[1761231034267,7.5626,190.13,190.05,2.6]
[1761231034772,7.5626,190.13,190.06,1.77093328]
[1761231035478,2.83,190.13,190.08,4.37093328]
[1761231036170,2.83,190.13,190.08,1.77093328]
[1761231038386,2.83,190.13,190.06,6.50493328]
[1761231038776,2.83,190.13,190.06,4.734]
[1761231040177,2.83,190.13,190.06,9.10493328]
[1761231040377,2.83,190.13,190.06,7.334]
[1761231040779,1.77093328,190.11,190.06,7.334]